fUSD/lending_fUSD_20240712
["ID","MTS","AMOUNT","RATE_DAILY","PERIOD"]
[331859198,1720794731002,-558.7,0.00014629,2]
[331859199,1720794731012,-500.0,0.00014629,2]
[331859200,1720794731021,-500.0,0.00014629,2]
[331859201,1720794731031,-566.18,0.00014629,2]
[331859202,1720794731042,-500.0,0.00014629,2]
[331859203,1720794731051,-500.0,0.00014629,2]
[331859204,1720794731061,-557.9,0.00014629,2]
[331859205,1720794731071,-500.0,0.00014629,2]
[331859206,1720794731080,-524.11,0.0001463,2]
[331859207,1720794731090,-798.11,0.0001463,2]
[331859208,1720794731103,-543.87,0.0001463,2]
[331859209,1720794731113,-500.0,0.0001463,2]
[331859210,1720794731122,-714.43,0.0001463,2]
[331859211,1720794731132,-717.24,0.0001463,2]
[331859212,1720794731143,-808.16,0.0001463,2]
[331859213,1720794731152,-574.63,0.0001463,2]
[331859214,1720794731161,-625.21,0.0001463,2]
[331859215,1720794731172,-945.63,0.0001463,2]
[331859216,1720794731181,-500.0,0.0001463,2]
[331859217,1720794731190,-677.22,0.0001463,2]
[331859218,1720794731199,-500.0,0.0001463,2]
[331859219,1720794731208,-567.5,0.0001463,2]
[331859220,1720794731218,-464.4,0.0001463,2]
[331859221,1720794731227,-799.61,0.0001463,2]
[331859222,1720794731236,-269.84582206,0.0001463,2]
[331859223,1720794731247,-500.0,0.0001463,2]
[331859224,1720794731257,-743.72,0.0001463,2]
[331859225,1720794731267,-500.0,0.0001463,2]
[331859226,1720794731277,-608.66,0.0001463,2]
[331859227,1720794731286,-500.0,0.0001463,2]
[331859228,1720794731295,-785.46,0.0001463,2]
[331859229,1720794731305,-506.96,0.0001463,2]
[331859230,1720794731315,-523.01,0.0001463,2]
[331859231,1720794731333,-532.23,0.0001463,2]
[331859232,1720794731342,-659.11,0.0001463,2]
[331859233,1720794731352,-928.6,0.0001463,2]
[331859234,1720794731362,-648.62263124,0.0001463,2]
[331859235,1720794731371,-857.04,0.0001463,2]
[331859236,1720794731380,-536.84,0.0001463,2]
[331859237,1720794731390,-1012.71,0.0001463,2]
[331859238,1720794731399,-787.1,0.0001463,2]
[331859239,1720794731408,-880.19,0.0001463,2]
[331859240,1720794731418,-545.56,0.0001463,2]
[331859241,1720794731427,-500.0,0.0001463,2]
[331859242,1720794731436,-714.66,0.0001463,2]
[331859243,1720794731446,-527.35894715,0.0001463,2]
[331859244,1720794731455,-633.29,0.0001463,2]
[331859245,1720794731465,-728.52,0.0001463,2]
[331859246,1720794731474,-669.08,0.0001463,2]
[331859247,1720794731484,-500.0,0.0001463,2]
[331859248,1720794731494,-500.0,0.0001463,2]
[331859249,1720794731504,-718.04,0.0001463,2]
[331859250,1720794731513,-500.0,0.0001463,2]
[331859251,1720794731522,-500.0,0.0001463,2]
[331859252,1720794731531,-662.74,0.0001463,2]
[331859253,1720794731541,-605.31,0.0001463,2]
[331859254,1720794731550,-612.82,0.0001463,2]
[331859255,1720794731559,-564.04,0.0001463,2]
[331859256,1720794731569,-840.15,0.0001463,2]
[331859257,1720794731578,-500.0,0.0001463,2]
[331859258,1720794731587,-976.09,0.0001463,2]
[331859259,1720794731596,-883.19,0.0001463,2]
[331859260,1720794731605,-518.94,0.0001463,2]
[331859261,1720794731616,-804.2,0.0001463,2]
[331859262,1720794731625,-861.95,0.0001463,2]
[331859263,1720794731634,-500.0,0.0001463,2]
[331859264,1720794731644,-642.51,0.0001463,2]
[331859265,1720794731653,-695.85,0.0001463,2]
[331859266,1720794731663,-595.38,0.0001463,2]
[331859267,1720794731672,-947.63,0.0001463,2]
[331859268,1720794731682,-500.0,0.0001463,2]
[331859269,1720794731692,-505.8,0.0001463,2]
[331859270,1720794731701,-594.81,0.0001463,2]
[331859271,1720794731711,-1155.19,0.0001463,2]
[331859272,1720794731721,-544.81,0.0001463,2]
[331859273,1720794731731,-666.06,0.0001463,2]
[331859274,1720794731742,-500.0,0.0001463,2]
[331859275,1720794731752,-500.0,0.0001463,2]
[331859276,1720794731762,-500.0,0.0001463,2]
[331859277,1720794731772,-574.05,0.0001463,2]
[331859278,1720794731785,-713.58,0.0001463,2]
[331859279,1720794731794,-523.05,0.0001463,2]
[331859280,1720794731803,-563.94,0.0001463,2]
[331859281,1720794731813,-500.0,0.0001463,2]
[331859282,1720794731823,-520.25,0.0001463,2]
[331859283,1720794731832,-712.83,0.0001463,2]
[331859284,1720794731842,-821.92,0.0001463,2]
[331859285,1720794731852,-1374.04,0.0001463,2]
[331859286,1720794731862,-687.92,0.0001463,2]
[331859287,1720794731872,-883.42,0.0001463,2]
[331859288,1720794731882,-517.54,0.0001463,2]
[331859289,1720794731891,-500.0,0.0001463,2]
[331859290,1720794731901,-1125.56,0.0001463,2]
[331859291,1720794731911,-667.83,0.0001463,2]
[331859292,1720794731920,-804.76,0.0001463,2]
[331859293,1720794731930,-861.99,0.0001463,2]
[331859294,1720794731939,-500.0,0.0001463,2]
[331859295,1720794731948,-1018.26,0.0001463,2]
[331859296,1720794731959,-833.97,0.0001463,2]
[331859297,1720794731968,-1246.88,0.0001463,2]
[331859298,1720794731978,-453.93,0.0001463,2]
[331859299,1720794731987,-743.04,0.0001463,2]
[331859300,1720794731999,-627.82,0.0001463,2]
[331859301,1720794732009,-469.12,0.0001463,2]
[331859302,1720794732019,-789.19,0.0001463,2]
[331859303,1720794732029,-564.93,0.0001463,2]
[331859304,1720794732039,-872.58,0.0001463,2]
[331859305,1720794732050,-500.0,0.0001463,2]
[331859306,1720794732061,-631.32,0.0001463,2]
[331859307,1720794732071,-1303.41,0.0001463,2]
[331859308,1720794732080,-987.74,0.0001463,2]
[331859309,1720794732091,-1057.82,0.0001463,2]
[331859310,1720794732104,-500.0,0.0001463,2]
[331859311,1720794732113,-741.61,0.0001463,2]
[331859312,1720794732123,-500.0,0.0001463,2]
[331859313,1720794732132,-759.54,0.0001463,2]
[331859314,1720794732143,-675.64,0.0001463,2]
[331859315,1720794732152,-546.31,0.0001463,2]
[331859316,1720794732161,-1372.87,0.0001463,2]
[331859317,1720794732173,-191.85847363,0.0001463,2]
[331859318,1720794732183,-507.78,0.0001463,2]
[331859319,1720794732193,-851.8,0.0001463,2]
[331859320,1720794732321,-1083.36,0.0001463,2]
[331859321,1720794732331,-519.29,0.0001463,2]
[331859322,1720794732342,-572.52995543,0.0001463,2]
[331859323,1720794732351,-500.0,0.0001463,2]
[331859324,1720794732360,-733.47,0.0001463,2]
[331859325,1720794732370,-266.61,0.0001463,2]
[331859326,1720794732379,-628.29,0.0001463,2]
[331859327,1720794732389,-500.0,0.0001463,2]
[331859328,1720794732398,-500.0,0.0001463,2]
[331859329,1720794732407,-1269.7,0.0001463,2]
[331859330,1720794732417,-1162.35,0.0001463,2]
[331859331,1720794732426,-500.0,0.0001463,2]
[331859332,1720794732436,-1140.36,0.0001463,2]
[331859333,1720794732445,-988.4,0.0001463,2]
[331859334,1720794732454,-1188.5,0.0001463,2]
[331859335,1720794732464,-582.01,0.0001463,2]
[331859336,1720794732474,-742.99,0.0001463,2]
[331859337,1720794732483,-500.0,0.0001463,2]
[331859338,1720794732493,-500.0,0.0001463,2]
[331859339,1720794732503,-641.89,0.0001463,2]
[331859340,1720794732513,-782.48,0.0001463,2]
[331859341,1720794732524,-500.0,0.0001463,2]
[331859342,1720794732534,-500.0,0.0001463,2]
[331859343,1720794732545,-648.56,0.0001463,2]
[331859344,1720794732556,-621.66,0.0001463,2]
[331859345,1720794732566,-837.4,0.0001463,2]
[331859346,1720794732575,-500.0,0.0001463,2]
[331859347,1720794732586,-1217.56,0.0001463,2]
[331859348,1720794732596,-500.0,0.0001463,2]
[331859349,1720794732606,-819.84,0.0001463,2]
[331859350,1720794732617,-500.0,0.0001463,2]
[331859351,1720794732627,-500.0,0.0001463,2]
[331859352,1720794732638,-1064.23,0.0001463,2]
[331859353,1720794732648,-4271.54,0.0001463,2]
[331859354,1720794732659,-1838.14,0.0001463,2]
[331859355,1720794732669,-989.52,0.0001463,2]
[331859356,1720794732679,-500.0,0.0001463,2]
[331859357,1720794732688,-1038.55,0.0001463,2]
[331859358,1720794732698,-835.73,0.0001463,2]
[331859359,1720794732707,-500.0,0.0001463,2]
[331859360,1720794732717,-720.1,0.0001463,2]
[331859361,1720794732726,-903.17,0.0001463,2]
[331859362,1720794732736,-948.98,0.0001463,2]
[331859363,1720794732748,-852.64,0.0001463,2]
[331859364,1720794732757,-540.42,0.0001463,2]
[331859365,1720794732767,-2299.04,0.0001463,2]
[331859366,1720794732776,-1111.09,0.0001463,2]
[331859367,1720794732785,-847.27,0.0001463,2]
[331859368,1720794732795,-563.5,0.0001463,2]
[331859369,1720794732804,-1080.3,0.0001463,2]
[331859370,1720794732813,-792.46,0.0001463,2]
[331859371,1720794732823,-1087.76,0.0001463,2]
[331859372,1720794732832,-777.64,0.0001463,2]
[331859373,1720794732842,-500.0,0.0001463,2]
[331859374,1720794732851,-859.86,0.0001463,2]
[331859375,1720794732861,-595.98,0.0001463,2]
[331859376,1720794732870,-500.0,0.0001463,2]
[331859377,1720794732880,-966.7,0.0001463,2]
[331859378,1720794732890,-770.6,0.0001463,2]
[331859379,1720794732900,-172.65065049,0.0001463,2]
[331859380,1720794732909,-500.0,0.0001463,2]
[331859381,1720794732919,-1183.71,0.0001463,2]
[331859382,1720794732929,-1004.68,0.0001463,2]
[331859383,1720794732939,-1241.85,0.0001463,2]
[331859384,1720794732948,-955.42,0.0001463,2]
[331859385,1720794732959,-1077.37,0.0001463,2]
[331859386,1720794732968,-500.0,0.0001463,2]
[331859387,1720794732978,-1386.2,0.0001463,2]
[331859388,1720794732988,-500.0,0.0001463,2]
[331859389,1720794733000,-500.0,0.0001463,2]
[331859390,1720794733010,-581.34,0.0001463,2]
[331859391,1720794733019,-500.0,0.0001463,2]
[331859392,1720794733029,-533.16,0.0001463,2]
[331859393,1720794733038,-1428.78,0.0001463,2]
[331859394,1720794733048,-1248.36,0.0001463,2]
[331859395,1720794733057,-1524.13,0.0001463,2]
[331859396,1720794733067,-742.08,0.0001463,2]
[331859397,1720794733076,-251.21,0.0001463,2]
[331859398,1720794733087,-1206.67,0.0001463,2]
[331859399,1720794733101,-183.41410005,0.0001463,2]
[331859400,1720794733110,-765.74,0.0001463,2]
[331859401,1720794733120,-654.42,0.0001463,2]
[331859402,1720794733131,-500.0,0.0001463,2]
[331859403,1720794733140,-1158.32,0.0001463,2]
[331859404,1720794733149,-517.72,0.0001463,2]
[331859405,1720794733158,-985.8,0.0001463,2]
[331859406,1720794733169,-1158.97,0.0001463,2]
[331859407,1720794733179,-1303.35,0.0001463,2]
[331859408,1720794733188,-642.75,0.0001463,2]
[331859409,1720794733198,-675.59,0.0001463,2]
[331859410,1720794733207,-500.0,0.0001463,2]
[331859411,1720794733216,-500.0,0.0001463,2]
[331859412,1720794733226,-1174.91,0.0001463,2]
[331859413,1720794733235,-502.48,0.0001463,2]
[331859414,1720794733248,-953.14,0.0001463,2]
[331859415,1720794733264,-712.64,0.0001463,2]
[331859416,1720794733281,-839.78,0.0001463,2]
[331859417,1720794733298,-1198.74,0.0001463,2]
[331859418,1720794733317,-504.32,0.0001463,2]
[331859419,1720794733336,-500.0,0.0001463,2]
[331859420,1720794733354,-500.0,0.0001463,2]
[331859421,1720794733373,-1168.03,0.0001463,2]
[331859422,1720794733387,-500.0,0.0001463,2]
[331859423,1720794733404,-1010.06,0.0001463,2]
[331859424,1720794733425,-642.47,0.0001463,2]
[331859425,1720794733439,-551.78,0.0001463,2]
[331859426,1720794733455,-748.91,0.0001463,2]
[331859427,1720794733471,-523.44,0.0001463,2]
[331859428,1720794733487,-822.71,0.0001463,2]
[331859429,1720794733503,-500.0,0.0001463,2]
[331859430,1720794733519,-697.55,0.0001463,2]
[331859431,1720794733534,-500.0,0.0001463,2]
[331859432,1720794733548,-712.55,0.0001463,2]
[331859433,1720794733563,-1375.16,0.0001463,2]
[331859434,1720794733578,-500.0,0.0001463,2]
[331859435,1720794733592,-894.92,0.0001463,2]
[331859436,1720794733608,-1385.78,0.0001463,2]
[331859437,1720794733624,-1435.7,0.0001463,2]
[331859438,1720794733639,-500.0,0.0001463,2]
[331859439,1720794733654,-500.0,0.0001463,2]
[331859440,1720794733669,-500.0,0.0001463,2]
[331859441,1720794733685,-500.0,0.0001463,2]
[331859442,1720794733700,-768.75,0.0001463,2]
[331859443,1720794733715,-716.79,0.0001463,2]
[331859444,1720794733731,-630.92,0.0001463,2]
[331859445,1720794733748,-1100.08,0.0001463,2]
[331859446,1720794733763,-675.75,0.0001463,2]
[331859447,1720794733778,-566.06,0.0001463,2]
[331859448,1720794733793,-1310.79,0.0001463,2]
[331859449,1720794733809,-500.0,0.0001463,2]
[331859450,1720794733825,-749.37,0.0001463,2]
[331859451,1720794733840,-1202.91,0.0001463,2]
[331859452,1720794733854,-511.15,0.0001463,2]
[331859453,1720794733870,-2219.16,0.0001463,2]
[331859454,1720794733885,-589.09,0.0001463,2]
[331859455,1720794733901,-1072.56,0.0001463,2]
[331859456,1720794733916,-500.0,0.0001463,2]
[331859457,1720794733930,-6883.09,0.0001463,2]
[331859458,1720794733945,-1321.77,0.0001463,2]
[331859459,1720794733961,-1509.04,0.0001463,2]
[331859460,1720794733977,-500.0,0.0001463,2]
[331859461,1720794733992,-500.0,0.0001463,2]
[331859462,1720794734006,-625.68874867,0.00014646,2]
[331859463,1720794734022,-524.11,0.00014684,2]
[331859464,1720794734037,-798.11,0.00014684,2]
[331859465,1720794734052,-500.0,0.00014684,2]
[331859466,1720794734067,-543.87,0.00014684,2]
[331859467,1720794734082,-531.42,0.00014684,2]
[331859468,1720794734100,-500.0,0.00014684,2]
[331859469,1720794734115,-588.13,0.00014684,2]
[331859470,1720794734131,-714.43,0.00014684,2]
[331859471,1720794734148,-624.05,0.00014684,2]
[331859472,1720794734162,-717.24,0.00014684,2]
[331859473,1720794734177,-500.0,0.00014684,2]
[331859474,1720794734192,-808.16,0.00014684,2]
[331859475,1720794734206,-574.63,0.00014684,2]
[331859476,1720794734220,-625.21,0.00014684,2]
[331859477,1720794734235,-945.63,0.00014684,2]
[331859478,1720794734252,-420.26561939,0.00014684,2]
[331859479,1720794734268,-259.7436143,0.00014684,2]
[331859480,1720794734282,-372.50188144,0.00014684,2]
[331859481,1720794734298,-677.22,0.00014684,2]
[331859482,1720794734313,-634.55,0.00014684,2]
[331859483,1720794734328,-500.0,0.00014684,2]
[331859484,1720794734343,-677.95,0.00014684,2]
[331859485,1720794734358,-567.5,0.00014684,2]
[331859486,1720794734373,-799.61,0.00014684,2]
[331859487,1720794734387,-500.0,0.00014684,2]
[331859488,1720794734402,-500.0,0.00014684,2]
[331859489,1720794734417,-743.72,0.00014684,2]
[331859490,1720794734432,-221.58864119,0.00014684,2]
[331859491,1720794734447,-500.0,0.00014684,2]
[331859492,1720794734462,-586.38,0.00014684,2]
[331859493,1720794734476,-608.66,0.00014684,2]
[331859494,1720794734493,-587.44558604,0.00014684,2]
[331859495,1720794734509,-819.14,0.00014684,2]
[331859496,1720794734524,-500.0,0.00014684,2]
[331859497,1720794734542,-806.25,0.00014684,2]
[331859498,1720794734557,-785.46,0.00014684,2]
[331859499,1720794734573,-506.96,0.00014684,2]
[331859500,1720794734588,-523.01,0.00014684,2]
[331859501,1720794734605,-532.23,0.00014684,2]
[331859502,1720794734620,-500.0,0.00014684,2]
[331859503,1720794734635,-659.11,0.00014684,2]
[331859504,1720794734650,-500.0,0.00014684,2]
[331859505,1720794734665,-928.6,0.00014684,2]
[331859506,1720794734680,-857.04,0.00014684,2]
[331859507,1720794734696,-536.84,0.00014684,2]
[331859508,1720794734903,-1012.71,0.00014684,2]
[331859509,1720794734914,-787.1,0.00014684,2]
[331859510,1720794734924,-880.19,0.00014684,2]
[331859511,1720794734934,-545.56,0.00014684,2]
[331859512,1720794734944,-345.33117857,0.00014684,2]
[331859513,1720794734954,-714.66,0.00014684,2]
[331859514,1720794734964,-691.25,0.00014684,2]
[331859515,1720794734974,-633.29,0.00014684,2]
[331859516,1720794734984,-870.72,0.00014684,2]
[331859517,1720794734993,-710.01,0.00014684,2]
[331859518,1720794735003,-728.52,0.00014684,2]
[331859519,1720794735013,-669.08,0.00014684,2]
[331859520,1720794735025,-541.91,0.00014684,2]
[331859521,1720794735035,-171.08825445,0.00014684,2]
[331859522,1720794735046,-500.0,0.00014684,2]
[331859523,1720794735055,-718.04,0.00014684,2]
[331859524,1720794735066,-500.0,0.00014684,2]
[331859525,1720794735076,-500.0,0.00014684,2]
[331859526,1720794735085,-500.0,0.00014684,2]
[331859527,1720794735098,-662.74,0.00014684,2]
[331859528,1720794735108,-605.31,0.00014684,2]
[331859529,1720794735117,-612.82,0.00014684,2]
[331859530,1720794735127,-564.04,0.00014684,2]
[331859531,1720794735137,-840.15,0.00014684,2]
[331859532,1720794735147,-500.0,0.00014684,2]
[331859533,1720794735157,-976.09,0.00014684,2]
[331859534,1720794735167,-883.19,0.00014684,2]
[331859535,1720794735177,-518.94,0.00014684,2]
[331859536,1720794735187,-804.2,0.00014684,2]
[331859537,1720794735197,-861.95,0.00014684,2]
[331859538,1720794735207,-500.0,0.00014684,2]
[331859539,1720794735216,-642.51,0.00014684,2]
[331859540,1720794735226,-695.85,0.00014684,2]
[331859541,1720794735236,-595.38,0.00014684,2]
[331859542,1720794735246,-947.63,0.00014684,2]
[331859543,1720794735256,-500.0,0.00014684,2]
[331859544,1720794735266,-500.0,0.00014684,2]
[331859545,1720794735275,-505.8,0.00014684,2]
[331859546,1720794735285,-594.81,0.00014684,2]
[331859547,1720794735294,-1155.19,0.00014684,2]
[331859548,1720794735304,-544.81,0.00014684,2]
[331859549,1720794735314,-666.06,0.00014684,2]
[331859550,1720794735324,-500.0,0.00014684,2]
[331859551,1720794735334,-500.0,0.00014684,2]
[331859552,1720794735344,-500.0,0.00014684,2]
[331859553,1720794735354,-574.05,0.00014684,2]
[331859554,1720794735364,-713.58,0.00014684,2]
[331859555,1720794735373,-523.05,0.00014684,2]
[331859556,1720794735382,-563.94,0.00014684,2]
[331859557,1720794735392,-500.0,0.00014684,2]
[331859558,1720794735402,-520.25,0.00014684,2]
[331859559,1720794735411,-712.83,0.00014684,2]
[331859560,1720794735421,-821.92,0.00014684,2]
[331859561,1720794735430,-1374.04,0.00014684,2]
[331859562,1720794735440,-687.92,0.00014684,2]
[331859563,1720794735450,-883.42,0.00014684,2]
[331859564,1720794735460,-517.54,0.00014684,2]
[331859565,1720794735470,-500.0,0.00014684,2]
[331859566,1720794735480,-667.83,0.00014684,2]
[331859567,1720794735490,-1125.56,0.00014684,2]
[331859568,1720794735501,-804.76,0.00014684,2]
[331859569,1720794735511,-861.99,0.00014684,2]
[331859570,1720794735521,-454.36,0.00014684,2]
[331859571,1720794735531,-1018.26,0.00014684,2]
[331859572,1720794735540,-833.97,0.00014684,2]
[331859573,1720794735550,-570.65,0.00014684,2]
[331859574,1720794735560,-582.03,0.00014684,2]
[331859575,1720794735570,-1246.88,0.00014684,2]
[331859576,1720794735579,-453.93,0.00014684,2]
[331859577,1720794735589,-506.37,0.00014684,2]
[331859578,1720794735598,-743.04,0.00014684,2]
[331859579,1720794735607,-627.82,0.00014684,2]
[331859580,1720794735618,-789.19,0.00014684,2]
[331859581,1720794735627,-564.93,0.00014684,2]
[331859582,1720794735637,-872.58,0.00014684,2]
[331859583,1720794735647,-500.0,0.00014684,2]
[331859584,1720794735656,-500.0,0.00014684,2]
[331859585,1720794735665,-631.32,0.00014684,2]
[331859586,1720794735675,-1303.41,0.00014684,2]
[331859587,1720794735685,-987.74,0.00014684,2]
[331859588,1720794735694,-1057.82,0.00014684,2]
[331859589,1720794735704,-500.0,0.00014684,2]
[331859590,1720794735715,-741.61,0.00014684,2]
[331859591,1720794735724,-500.0,0.00014684,2]
[331859592,1720794735734,-500.0,0.00014684,2]
[331859593,1720794735745,-759.54,0.00014684,2]
[331859594,1720794735755,-675.64,0.00014684,2]
[331859595,1720794735765,-546.31,0.00014684,2]
[331859596,1720794735774,-1372.87,0.00014684,2]
[331859597,1720794735784,-500.0,0.00014684,2]
[331859598,1720794735794,-507.78,0.00014684,2]
[331859599,1720794735803,-424.8,0.00014684,2]
[331859600,1720794735813,-851.8,0.00014684,2]
[331859601,1720794735823,-500.0,0.00014684,2]
[331859602,1720794735833,-1083.36,0.00014684,2]
[331859603,1720794735844,-646.31,0.00014684,2]
[331859604,1720794735853,-519.29,0.00014684,2]
[331859605,1720794735863,-500.0,0.00014684,2]
[331859606,1720794735873,-733.47,0.00014684,2]
[331859607,1720794735882,-500.0,0.00014684,2]
[331859608,1720794735892,-628.29,0.00014684,2]
[331859609,1720794735902,-170.27424616,0.00014684,2]
[331859610,1720794735911,-500.0,0.00014684,2]
[331859611,1720794735921,-167.82771813,0.00014684,2]
[331859612,1720794735931,-1269.7,0.00014684,2]
[331859613,1720794735941,-500.0,0.00014684,2]
[331859614,1720794735951,-1162.35,0.00014684,2]
[331859615,1720794735961,-500.0,0.00014684,2]
[331859616,1720794735971,-1140.36,0.00014684,2]
[331859617,1720794735981,-988.4,0.00014684,2]
[331859618,1720794735990,-559.09,0.00014684,2]
[331859619,1720794736001,-1188.5,0.00014684,2]
[331859620,1720794736011,-582.01,0.00014684,2]
[331859621,1720794736021,-742.99,0.00014684,2]
[331859622,1720794736031,-500.0,0.00014684,2]
[331859623,1720794736041,-500.0,0.00014684,2]
[331859624,1720794736052,-641.89,0.00014684,2]
[331859625,1720794736063,-782.48,0.00014684,2]
[331859626,1720794736074,-565.15199614,0.00014684,2]
[331859627,1720794736084,-500.0,0.00014684,2]
[331859628,1720794736099,-648.56,0.00014684,2]
[331859629,1720794736110,-621.66,0.00014684,2]
[331859630,1720794736121,-577.19,0.00014684,2]
[331859631,1720794736131,-837.4,0.00014684,2]
[331859632,1720794736141,-500.0,0.00014684,2]
[331859633,1720794736151,-1217.56,0.00014684,2]
[331859634,1720794736162,-500.0,0.00014684,2]
[331859635,1720794736171,-819.84,0.00014684,2]
[331859636,1720794736182,-560.07,0.00014684,2]
[331859637,1720794736192,-500.0,0.00014684,2]
[331859638,1720794736202,-1091.77,0.00014684,2]
[331859639,1720794736212,-500.0,0.00014684,2]
[331859640,1720794736222,-1064.23,0.00014684,2]
[331859641,1720794736231,-4271.54,0.00014684,2]
[331859642,1720794736242,-1838.14,0.00014684,2]
[331859643,1720794736252,-989.52,0.00014684,2]
[331859644,1720794736262,-500.0,0.00014684,2]
[331859645,1720794736272,-500.0,0.00014684,2]
[331859646,1720794736281,-325.31137715,0.00014684,2]
[331859647,1720794736291,-1038.55,0.00014684,2]
[331859648,1720794736301,-835.73,0.00014684,2]
[331859649,1720794736311,-500.0,0.00014684,2]
[331859650,1720794736321,-720.1,0.00014684,2]
[331859651,1720794736331,-903.17,0.00014684,2]
[331859652,1720794736340,-948.98,0.00014684,2]
[331859653,1720794736350,-852.64,0.00014684,2]
[331859654,1720794736359,-540.42,0.00014684,2]
[331859655,1720794736369,-2299.04,0.00014684,2]
[331859656,1720794736379,-1111.09,0.00014684,2]
[331859657,1720794736388,-847.27,0.00014684,2]
[331859658,1720794736399,-563.5,0.00014684,2]
[331859659,1720794736409,-1080.3,0.00014684,2]
[331859660,1720794736420,-792.46,0.00014684,2]
[331859661,1720794736431,-1087.76,0.00014684,2]
[331859662,1720794736442,-777.64,0.00014684,2]
[331859663,1720794736452,-500.0,0.00014684,2]
[331859664,1720794736462,-859.86,0.00014684,2]
[331859665,1720794736472,-595.98,0.00014684,2]
[331859666,1720794736482,-160.92,0.00014684,2]
[331859667,1720794736494,-966.7,0.00014684,2]
[331859668,1720794736503,-558.7,0.00014684,2]
[331859669,1720794736513,-770.6,0.00014684,2]
[331859670,1720794736523,-500.0,0.00014684,2]
[331859671,1720794736533,-1183.71,0.00014684,2]
[331859672,1720794736543,-1004.68,0.00014684,2]
[331859673,1720794736553,-1241.85,0.00014684,2]
[331859674,1720794736562,-955.42,0.00014684,2]
[331859675,1720794736572,-1077.37,0.00014684,2]
[331859676,1720794736581,-500.0,0.00014684,2]
[331859677,1720794736591,-1386.2,0.00014684,2]
[331859678,1720794736601,-292.45942186,0.00014684,2]
[331859679,1720794736611,-500.0,0.00014684,2]
[331859680,1720794736621,-581.34,0.00014684,2]
[331859681,1720794736630,-500.0,0.00014684,2]
[331859682,1720794736640,-533.16,0.00014684,2]
[331859683,1720794736650,-1428.78,0.00014684,2]
[331859684,1720794736660,-1248.36,0.00014684,2]
[331859685,1720794736669,-1524.13,0.00014684,2]
[331859686,1720794736679,-742.08,0.00014684,2]
[331859687,1720794736688,-1206.67,0.00014684,2]
[331859688,1720794736698,-765.74,0.00014684,2]
[331859689,1720794736707,-654.42,0.00014684,2]
[331859690,1720794736717,-500.0,0.00014684,2]
[331859691,1720794736727,-1158.32,0.00014684,2]
[331859692,1720794736736,-500.0,0.00014684,2]
[331859693,1720794736748,-517.72,0.00014684,2]
[331859694,1720794736757,-985.8,0.00014684,2]
[331859695,1720794736767,-1158.97,0.00014684,2]
[331859696,1720794736777,-1303.35,0.00014684,2]
[331859697,1720794736787,-642.75,0.00014684,2]